bitfinex/quotes_ETHUSD_20240714
["timestamp","ask_amount","ask_price","bid_price","bid_amount"]
[1720964794489,1.05910148,3193.9,3193.8,0.792]
[1720964795088,0.49156271,3193.9,3193.8,0.792]
[1720964795294,0.68684754,3193.9,3193.8,0.792]
[1720964800122,3.20125666,3193.9,3193.5,2.4187]
[1720964800305,2.29394749,3193.6,3193.5,2.4187]
[1720964800617,2.29394749,3193.6,3193.5,0.792]
[1720964800826,2.70969395,3193.8,3193.5,0.792]
[1720964801034,0.32753185,3193.6,3193.3,4.92392]
[1720964801220,2.29376433,3193.5,3193.3,4.92392]
[1720964801429,2.29376433,3193.5,3193.4,0.792]
[1720964801743,0.32753185,3193.6,3193.4,0.792]
[1720964801898,2.29352019,3193.5,3193.4,0.792]
[1720964804433,2.29372373,3193.5,3193.4,0.792]
[1720964804812,0.32753185,3193.6,3193.4,0.792]
[1720964805015,2.29376206,3193.5,3193.4,0.792]
[1720964805211,2.29378169,3193.5,3193.4,0.792]
[1720964805627,5.64720226,3193.5,3193.0,6.57477154]
[1720964805804,2.90497091,3193.4,3193.1,0.792]
[1720964805998,2.70952962,3193.4,3193.1,0.792]
[1720964806413,2.29363314,3193.2,3193.1,0.792]
[1720964808645,2.29322104,3193.2,3193.1,0.792]
[1720964808953,2.29322104,3193.2,3193.1,3.1413]
[1720964809850,2.29322104,3193.3,3193.1,3.1413]
[1720964810014,2.29322104,3193.3,3193.2,0.792]
[1720964811434,3.0363992,3193.6,3193.2,0.792]
[1720964811756,2.2932003,3193.3,3193.1,2.3493]
[1720964812047,2.29317652,3193.3,3193.2,0.792]
[1720964813314,2.70881476,3193.5,3193.2,0.792]
[1720964813517,2.70881476,3193.5,3192.9,16.73893601]
[1720964813518,2.90426664,3193.5,3193.4,0.792]
[1720964815349,2.90431038,3193.5,3193.4,0.792]
[1720964815649,3.2274946,3193.5,3193.4,0.792]
[1720964816671,0.5186361,3193.5,3193.4,0.792]
[1720964817152,2.90431038,3193.5,3193.4,0.792]
[1720964817351,0.19545188,3193.5,3193.4,0.792]
[1720964819255,0.32753185,3193.6,3193.4,0.792]
[1720964819427,0.32753185,3193.6,3193.5,5.07278458]
[1720964819627,0.32753185,3193.6,3193.5,8.24348861]
[1720964819820,2.29324346,3193.6,3193.5,8.18086846]
[1720964820020,0.32753185,3193.6,3193.5,8.18086846]
[1720964822162,0.32753185,3193.6,3193.5,12.56894846]
[1720964822319,0.32753185,3193.6,3193.5,16.11894846]
[1720964822527,0.32753185,3193.6,3193.5,13.85586846]
[1720964822528,1.96505916,3193.6,3193.5,13.85586846]
[1720964823041,1.96505916,3193.6,3193.5,11.97286846]
[1720964823229,0.32753185,3193.6,3193.5,11.97286846]
[1720964823431,1.96384583,3193.6,3193.5,11.15146]
[1720964823835,1.96384583,3193.6,3193.5,8.59638]
[1720964824464,1.96358835,3193.6,3193.5,8.59638]
[1720964824963,1.96358835,3193.6,3193.5,3.792]
[1720964825172,1.96358835,3193.6,3192.9,23.31370755]
[1720964825173,0.32753185,3193.6,3192.9,23.31370755]
[1720964825377,1.63591064,3193.3,3193.1,2.50539]
[1720964825577,2.29079965,3193.6,3193.1,2.50539]
[1720964825578,1.9632678,3193.5,3193.2,3.792]
[1720964825742,1.9632678,3193.5,3193.4,0.792]
[1720964826142,4.3825678,3193.5,3193.0,3.0]
[1720964826371,4.3825678,3193.5,3193.4,0.792]
[1720964826579,4.85357777,3193.5,3193.4,0.792]
[1720964826777,2.89030997,3193.5,3193.4,0.792]
[1720964828272,0.47100997,3193.5,3193.4,0.792]
[1720964829455,0.32753185,3193.6,3193.4,0.792]
[1720964830267,2.28965965,3193.5,3193.4,0.792]
[1720964830466,2.6171915,3193.6,3193.4,0.792]
[1720964830969,2.61742688,3193.6,3193.4,0.792]
[1720964832001,0.32753185,3193.6,3193.4,0.792]
[1720964832304,3.11836957,3193.6,3193.4,0.792]
[1720964834381,3.11895442,3193.6,3193.4,0.792]
[1720964834918,0.82847454,3193.6,3193.4,0.792]
[1720964835075,0.32753185,3193.6,3193.4,0.792]
[1720964835269,1.96423804,3193.5,3193.4,0.792]
[1720964836500,1.96423804,3193.5,3193.4,3.1207]
[1720964836701,0.32753185,3193.6,3193.4,3.1207]
[1720964836702,2.29176989,3193.6,3193.4,3.1207]
[1720964836903,1.96423804,3193.5,3193.4,3.29716]
[1720964837405,1.9638607,3193.5,3193.4,3.29716]
[1720964837617,1.963795,3193.5,3193.4,3.29716]
[1720964837911,1.96361004,3193.5,3193.4,3.24716]
[1720964838113,0.32753185,3193.6,3193.4,3.24716]
[1720964838408,1.96361509,3193.5,3193.4,3.24716]
[1720964838581,1.96361509,3193.5,3193.4,0.792]
[1720964838777,0.32753185,3193.6,3193.4,0.792]
[1720964840218,1.96439412,3193.5,3193.4,0.792]
[1720964840419,1.96450661,3193.5,3193.4,0.792]
[1720964840622,1.96448401,3193.5,3193.4,0.792]
[1720964840832,2.29201586,3193.6,3193.4,0.792]
[1720964840981,1.96454326,3193.5,3193.4,1.121723]
[1720964841382,0.32753185,3193.6,3193.4,0.792]
[1720964841584,2.61949899,3193.6,3193.4,0.792]
[1720964841808,0.32753185,3193.6,3193.4,0.792]
[1720964843584,2.29151291,3193.5,3193.4,0.792]
[1720964844216,2.29151255,3193.5,3193.4,0.792]
[1720964844522,2.79261699,3193.5,3193.4,0.792]
[1720964844721,0.50110444,3193.5,3193.4,0.792]
[1720964845236,2.79259713,3193.5,3193.4,0.792]
[1720964845435,2.79244666,3193.5,3193.4,0.792]
[1720964846239,0.50110444,3193.5,3193.4,0.792]
[1720964848044,2.79242129,3193.5,3193.4,0.792]
[1720964848410,0.50110444,3193.5,3193.4,0.792]
[1720964848630,0.32753185,3193.6,3193.4,0.792]
[1720964848631,2.61892546,3193.6,3193.4,0.792]
[1720964848917,0.32753185,3193.6,3193.4,0.792]
[1720964849132,2.61892546,3193.6,3193.4,0.792]
[1720964849307,0.32753185,3193.6,3193.4,0.792]
[1720964849507,2.61892546,3193.6,3193.4,0.792]
[1720964850739,0.32753185,3193.6,3193.4,0.792]
[1720964851044,2.61874251,3193.6,3193.4,0.792]
[1720964851224,0.32753185,3193.6,3193.4,0.792]
[1720964854506,0.32753185,3193.6,3193.5,0.792]
[1720964854941,2.61876541,3193.6,3193.5,0.792]
[1720964856621,2.61876541,3193.6,3193.1,2.50533]
[1720964856765,1.96404319,3193.2,3193.1,2.50533]
[1720964856965,1.9640517,3193.2,3193.1,3.29733]
[1720964857401,0.49158367,3193.2,3193.1,3.29733]
[1720964857579,0.81917178,3193.2,3193.1,4.76533215]
[1720964858175,0.81917178,3193.2,3193.1,7.27073215]
[1720964858770,0.81917178,3193.2,3193.1,9.57313215]
[1720964859173,2.1285499,3193.2,3193.1,9.57313215]
[1720964859393,0.81917178,3193.2,3193.1,9.57313215]
[1720964860513,2.12857202,3193.2,3193.1,9.57313215]
[1720964860886,0.81917178,3193.2,3193.1,9.57313215]
[1720964861299,2.1286347,3193.2,3193.1,9.57313215]
[1720964861492,2.1286347,3193.2,3193.1,15.05353215]
[1720964862812,2.1286347,3193.2,3193.1,12.54813215]
[1720964865128,0.81917178,3193.2,3193.1,8.57473]
[1720964865415,0.81917178,3193.2,3193.1,6.27233]
[1720964865607,2.45572021,3193.2,3193.1,6.27233]
[1720964865984,2.45572021,3193.2,3193.1,11.08013]
[1720964866183,0.81917178,3193.2,3193.1,11.08013]
[1720964866383,2.12821762,3193.2,3193.1,12.188143]
[1720964867518,0.81917178,3193.2,3193.1,12.188143]
[1720964867710,2.12827641,3193.2,3193.1,12.188143]
[1720964868222,0.81917178,3193.2,3193.1,12.188143]
[1720964869293,2.45555257,3193.2,3193.1,12.188143]
[1720964869603,2.45555257,3193.2,3193.1,11.08013]
[1720964869993,2.45555257,3193.2,3193.1,8.77773]
[1720964870294,2.45619828,3193.2,3193.1,8.77773]
[1720964871010,2.45613146,3193.2,3193.1,11.09783]
[1720964871223,0.81917178,3193.2,3193.1,11.09783]
[1720964871433,0.81917178,3193.2,3193.1,12.207613]
[1720964871597,2.45613146,3193.2,3193.1,12.207613]
[1720964871920,2.45613146,3193.2,3193.1,8.77773]
[1720964872123,2.45613423,3193.2,3193.1,8.77773]
[1720964874353,2.45599726,3193.2,3193.1,8.77773]
[1720964875828,0.81917178,3193.2,3193.1,8.77773]
[1720964876197,2.45599726,3193.2,3193.1,8.77773]
[1720964876602,2.45599726,3193.2,3193.1,9.887513]
[1720964876798,2.36833583,3193.2,3193.1,9.887513]
[1720964877022,0.73151035,3193.2,3193.1,9.887513]
[1720964877669,0.40392224,3193.2,3193.1,9.887513]
[1720964877800,1.71326539,3193.2,3193.1,9.887513]
[1720964880134,1.71319814,3193.2,3193.1,9.887513]
[1720964880435,1.71318773,3193.2,3193.1,9.887513]
[1720964880809,0.40392224,3193.2,3193.1,9.887513]
[1720964881008,1.71319168,3193.2,3193.1,14.091613]
[1720964881349,1.63658017,3193.4,3193.3,5.01048]
[1720964881552,0.32759098,3193.8,3193.3,5.01048]
[1720964881553,1.63658017,3193.5,3193.4,5.01032]
[1720964881708,2.29148718,3193.8,3193.5,5.01016]
[1720964881709,1.63658017,3193.6,3193.5,5.01016]
[1720964881908,1.63658017,3193.7,3193.6,5.01002]
[1720964882133,1.63656699,3193.7,3193.6,5.80202]
[1720964882362,1.63656699,3193.7,3193.6,6.68848398]
[1720964882669,1.96415797,3193.8,3193.7,5.00986]
[1720964883542,1.96384599,3193.8,3193.7,5.00986]
[1720964884312,1.96384599,3193.8,3193.7,2.50493]
[1720964884530,2.3897,3193.7,3193.6,3.297]
[1720964884731,4.02590579,3193.7,3193.6,3.297]
[1720964884934,2.3897,3193.7,3193.6,3.297]
[1720964885813,0.32759098,3193.8,3193.7,2.50493]
[1720964888334,0.32759098,3193.8,3193.6,0.792]
[1720964888536,1.63578589,3193.7,3193.6,0.792]
[1720964888944,0.32759098,3193.8,3193.6,0.792]
[1720964889268,0.32759098,3193.8,3193.3,3.0]
[1720964889423,0.32759098,3193.8,3193.7,0.792]
[1720964894961,0.32759098,3193.8,3193.4,2.50512]
[1720964895159,1.63602063,3193.5,3193.4,2.50512]
[1720964895361,1.63602063,3193.5,3193.4,3.29712]
[1720964895973,1.96330947,3193.7,3193.4,3.29712]
[1720964896141,1.96330947,3193.7,3193.4,2.50512]
[1720964896575,1.96330947,3193.7,3193.6,0.792]
[1720964897082,1.96342175,3193.7,3193.6,0.792]
[1720964897452,2.29101273,3193.8,3193.6,0.792]
[1720964898155,1.96342175,3193.7,3193.4,2.50512]
[1720964898344,1.96342175,3193.7,3193.6,0.792]
[1720964898545,4.91874508,3193.7,3193.6,0.792]
[1720964900351,4.40123304,3193.7,3193.6,0.792]
[1720964901283,2.4381,3193.7,3193.6,0.792]
[1720964908195,4.72959419,3193.7,3193.6,0.792]
[1720964908376,2.4381,3193.7,3193.6,0.792]
[1720964909090,0.32759098,3193.8,3193.6,0.792]
[1720964909291,0.49155557,3193.7,3193.6,0.792]
[1720964910001,2.45590124,3193.7,3193.6,1.121716]
[1720964910209,2.45590124,3193.7,3193.6,8.23862]
[1720964910210,2.12858578,3193.7,3193.6,8.23862]
[1720964910377,2.12869146,3193.7,3193.6,8.23862]
[1720964910577,0.49155557,3193.7,3193.6,8.23862]
[1720964910907,2.12869146,3193.7,3193.6,9.062482]
[1720964911205,0.49155557,3193.7,3193.6,9.062482]
[1720964912403,1.8010296,3193.7,3193.6,9.062482]
[1720964913888,0.49155557,3193.7,3193.6,9.062482]
[1720964914086,0.49155557,3193.7,3193.6,12.062482]
[1720964914724,1.47343186,3193.7,3193.6,12.062482]
[1720964915101,0.49155557,3193.7,3193.6,12.062482]
[1720964915498,1.47336743,3193.7,3193.6,12.062482]
[1720964916191,0.49155557,3193.7,3193.6,12.062482]
[1720964917089,1.47333761,3193.7,3193.6,12.062482]
[1720964918489,1.47327936,3193.7,3193.6,12.062482]
[1720964919331,1.63620632,3194.0,3193.8,4.94145]
[1720964919332,1.30896505,3193.9,3193.8,4.94145]
[1720964919527,1.30896505,3194.0,3193.9,5.80154]
[1720964919751,1.63620632,3194.1,3194.0,5.00938]
[1720964919752,1.30896505,3194.1,3194.0,5.00938]
[1720964919896,1.63620632,3194.2,3194.0,2.4366]
[1720964920094,0.49142403,3194.2,3194.1,1.30326]
[1720964920696,0.49142403,3194.2,3194.1,6.31248]
[1720964921636,1.80003793,3194.2,3194.1,6.31248]
[1720964921938,1.80003793,3194.2,3194.1,6.86248]
[1720964922097,0.49142403,3194.2,3194.1,6.86248]
[1720964923313,1.3086139,3194.4,3194.3,5.00892]
[1720964923629,1.3086139,3194.5,3194.4,10.12136]
[1720964924007,1.3086139,3194.5,3194.4,10.67136]
[1720964924304,1.3086139,3194.6,3194.5,5.0086]
[1720964924515,1.3086139,3194.7,3194.5,3.0]
[1720964924711,1.63518686,3194.9,3194.7,2.50414]
[1720964924917,1.63518686,3194.9,3194.8,3.29606]
[1720964925511,1.63518686,3195.0,3194.9,2.50399]
[1720964925741,0.32760387,3195.1,3194.9,3.29599]
[1720964926547,1.63391878,3195.0,3194.9,3.29599]
[1720964926911,1.63392386,3195.0,3194.9,3.29599]
[1720964928134,1.96152773,3195.1,3194.9,3.29599]
[1720964928446,1.96113776,3195.1,3194.9,3.29599]
[1720964928637,1.30654161,3195.0,3194.9,3.29599]
[1720964928945,1.96113776,3195.1,3194.9,3.29599]
[1720964929239,1.96113776,3195.1,3195.0,2.50391]
[1720964929607,2.1251757,3195.1,3195.0,2.50391]
[1720964929800,2.1251757,3195.1,3195.0,3.32875]
[1720964930836,2.1251757,3195.1,3195.0,5.83266]
[1720964932361,2.1251757,3195.1,3195.0,5.00782]
[1720964932559,0.81892756,3195.1,3195.0,5.00782]
[1720964932766,4.6023757,3195.1,3194.8,2.50403]
[1720964932939,1.30543917,3195.0,3194.8,2.50403]
[1720964933144,1.30543917,3195.0,3194.9,0.792]
[1720964933341,3.29612756,3195.1,3194.9,0.792]
[1720964933542,1.30536885,3195.0,3194.9,0.792]
[1720964940388,4.60149641,3195.1,3194.9,0.792]
[1720964941573,2.12429641,3195.1,3194.9,0.792]
[1720964943001,2.1237638,3195.1,3194.7,2.50413]
[1720964943204,2.49924471,3195.1,3195.0,0.792]
[1720964943405,1.19440847,3195.1,3195.0,0.792]
[1720964943701,0.81892756,3195.1,3195.0,0.792]
[1720964949091,0.81892756,3195.1,3195.0,3.29591]
[1720964949474,2.45216111,3195.1,3195.0,3.29591]
[1720964949798,0.81892756,3195.1,3195.0,3.29591]
[1720964950400,2.45216111,3195.1,3195.0,3.29591]
[1720964953391,0.81892756,3195.1,3195.0,0.792]
[1720964955005,3.25032756,3195.1,3195.0,0.792]
[1720964955414,5.21020782,3195.1,3195.0,0.792]
[1720964955598,3.25032756,3195.1,3195.0,0.792]
[1720964956817,5.21351102,3195.1,3195.0,0.792]
[1720964958813,3.25032756,3195.1,3195.0,0.792]
[1720964958994,5.21427536,3195.1,3195.0,0.792]
[1720964960315,3.25032756,3195.1,3195.0,0.792]
[1720964965598,5.5459967,3195.1,3195.0,0.792]
[1720964966015,6.10309637,3195.1,3195.0,0.792]
[1720964966220,3.67169637,3195.1,3194.5,3.0]
[1720964966422,1.96768378,3194.8,3194.5,3.0]
[1720964966643,1.96768378,3194.8,3194.7,0.792]
[1720964966921,1.96797751,3194.8,3194.7,0.792]
[1720964967517,4.72706914,3195.0,3194.7,0.792]
[1720964967853,4.72706914,3195.0,3194.9,0.792]
[1720964970840,2.29566914,3195.0,3194.9,0.792]
[1720964972020,2.29700096,3195.0,3194.9,0.792]
[1720964972843,3.11592852,3195.1,3194.9,0.792]
[1720964974353,2.29700096,3195.0,3194.9,0.792]
[1720964975314,0.81892756,3195.1,3194.9,0.792]
[1720964975518,2.29724569,3195.0,3194.9,0.792]
[1720964975890,3.11617325,3195.1,3194.9,0.792]
[1720964976094,2.29724569,3195.0,3194.9,0.792]
[1720964976293,3.11617325,3195.1,3194.9,0.792]
[1720964978514,0.81892756,3195.1,3194.9,0.792]
[1720964978911,3.11646292,3195.1,3194.9,0.792]
[1720964980005,3.11646292,3195.1,3195.0,2.50391]
[1720964982122,0.81892756,3195.1,3195.0,2.50391]
[1720964995263,0.49132369,3195.1,3195.0,15.19643]
[1720964995480,0.98432793,3195.1,3195.0,15.2590202]
[1720964995667,1.66491476,3195.3,3195.2,6.8915]
[1720964995668,0.025,3195.3,3195.2,6.8915]
[1720964995964,0.025,3195.3,3195.2,11.2335]
[1720964999747,0.025,3195.3,3195.2,8.5575]
[1720964999956,0.025,3195.3,3195.2,11.2335]
[1720965000484,0.025,3195.3,3195.2,5.50375]
[1720965000767,0.025,3195.3,3195.2,6.29575]
[1720965001065,2.5075,3195.3,3195.2,0.792]
[1720965001633,4.14488469,3195.3,3195.2,0.792]
[1720965001845,2.5075,3195.3,3195.2,0.792]
[1720965002252,2.92198847,3195.3,3194.9,3.08]
[1720965002456,1.6376113,3195.1,3194.7,2.50409]
[1720965002680,1.6376113,3195.0,3194.7,2.50409]
[1720965002883,1.6376113,3195.0,3194.9,0.792]
[1720965004349,1.63758936,3195.0,3194.9,0.792]
[1720965007672,1.6376725,3195.0,3194.9,0.792]
[1720965008765,1.96520701,3195.2,3194.9,0.792]
[1720965008976,1.96520701,3195.2,3194.6,2.50416]
[1720965009154,1.3101562,3194.8,3194.6,2.50416]
[1720965009358,1.3101562,3194.8,3194.7,0.792]
[1720965009593,1.3101562,3194.8,3194.7,1.121616]
[1720965010311,1.3101562,3194.8,3194.7,0.792]
[1720965015813,1.3101562,3194.8,3194.7,3.29614]
[1720965016589,1.3101562,3194.8,3194.7,5.80028]
[1720965020095,1.3101562,3194.8,3194.7,12.834562]
[1720965020300,1.3101562,3194.9,3194.8,5.00812]
[1720965020540,1.3101562,3194.9,3194.8,7.0835762]
[1720965022641,1.63863615,3195.0,3194.9,5.00798]
[1720965023558,2.3093,3195.1,3194.7,2.50407]
[1720965023857,1.31099102,3194.8,3194.7,2.50407]
[1720965024008,1.31099102,3194.8,3194.7,4.096899]
[1720965024608,1.63882787,3194.9,3194.7,4.096899]
[1720965025168,1.63882787,3194.9,3194.4,9.79435]
[1720965025443,3.62050974,3194.6,3194.4,2.50435]
[1720965025680,2.3093,3194.6,3194.5,0.792]
[1720965027038,1.63882787,3194.7,3194.5,0.792]
[1720965027448,2.3093,3194.8,3194.5,0.792]
[1720965027700,1.63902103,3194.7,3194.4,5.50436]
[1720965027877,1.31111725,3194.5,3194.4,8.252248]
[1720965028056,1.31111725,3194.5,3194.4,9.044248]
[1720965030701,1.31111725,3194.5,3194.4,3.539888]
[1720965030885,1.99123577,3196.2,3194.2,19.47]
[1720965030886,2.3811,3194.6,3194.2,19.47]
[1720965031214,1.63815463,3194.3,3194.2,19.47]
[1720965031369,2.3811,3194.4,3194.2,0.792]
[1720965031564,2.45936658,3194.4,3194.3,0.792]
[1720965031769,2.3811,3194.4,3194.3,0.792]
[1720965031964,2.856396,3194.4,3194.3,0.792]
[1720965032509,2.3811,3194.4,3194.3,0.792]
[1720965033189,2.3811,3194.4,3194.0,7.29]
[1720965033375,2.3811,3194.4,3193.7,24.97492]
[1720965033376,1.30980158,3194.1,3193.7,24.97492]
[1720965033584,1.30980158,3194.1,3194.0,0.792]
[1720965034400,1.30980158,3194.2,3194.0,0.792]
[1720965034719,1.30980158,3194.2,3194.1,3.29661]
[1720965035014,1.30980158,3194.3,3194.1,2.50461]
[1720965035165,1.30980158,3194.2,3194.1,0.792]
[1720965035368,4.01792906,3194.4,3194.1,0.792]
[1720965035369,1.30980158,3194.3,3194.1,0.792]
[1720965035708,1.30980158,3194.3,3194.2,0.792]
[1720965035883,4.01792906,3194.4,3194.2,0.792]
[1720965036197,1.30892358,3194.3,3194.2,0.792]
[1720965036813,4.01704338,3194.4,3194.2,0.792]
[1720965037014,1.63594338,3194.3,3194.2,0.792]
[1720965037173,2.3811,3194.4,3194.2,0.792]
[1720965037374,4.01703292,3194.4,3194.2,0.792]
[1720965038671,2.3811,3194.4,3194.2,0.792]
[1720965038912,1.30822587,3194.3,3194.2,0.792]
[1720965039317,4.01638234,3194.4,3194.2,0.792]
[1720965039474,1.30808091,3194.3,3194.2,0.792]
[1720965039673,4.01638234,3194.4,3194.2,0.792]
[1720965040611,2.3811,3194.4,3194.2,0.792]
[1720965040813,4.01599738,3194.4,3194.2,0.792]
[1720965041711,1.30791472,3194.3,3194.2,0.767]
[1720965041888,1.30791472,3194.3,3194.2,0.792]
[1720965042826,1.30791472,3194.3,3193.7,21.97486]
[1720965042972,1.30801509,3194.1,3193.7,21.97486]
[1720965043178,3.68911509,3194.0,3193.5,2.50506]
[1720965043489,3.68911509,3194.0,3193.9,0.792]
[1720965043689,2.3811,3194.0,3193.9,0.792]
[1720965043893,4.0159064,3194.0,3193.5,2.50506]
[1720965044206,1.30784338,3193.8,3193.3,9.79522]
[1720965044379,1.30784338,3193.8,3193.7,0.792]
[1720965045387,1.30784338,3193.8,3193.4,3.0]
[1720965045593,1.30784338,3193.8,3193.7,0.792]
[1720965047508,1.30784338,3193.9,3193.7,0.792]
[1720965047711,1.30784338,3193.9,3193.8,0.792]
[1720965048015,4.0159064,3194.0,3193.8,0.792]
[1720965048217,1.30743718,3193.9,3193.8,0.792]
[1720965049002,4.0159064,3194.0,3193.8,0.792]
[1720965049225,1.6348064,3193.9,3193.8,0.792]
[1720965049406,4.45025882,3194.0,3193.8,0.792]
[1720965049610,1.6348064,3193.9,3193.8,0.792]
[1720965049817,2.81545242,3194.0,3193.8,0.792]
[1720965049818,4.45025882,3194.0,3193.8,0.792]
[1720965050020,1.6348064,3193.9,3193.8,0.792]
[1720965050187,2.11259406,3193.9,3193.3,10.29]
[1720965050385,4.01449341,3194.0,3193.8,0.792]
[1720965052386,1.30631668,3193.9,3193.8,0.792]
[1720965053781,1.30610349,3193.9,3193.8,0.792]
[1720965056223,1.79762559,3193.9,3193.8,0.792]
[1720965064387,0.4915221,3193.9,3193.8,0.792]
[1720965064928,2.6071933,3193.9,3193.8,0.792]
[1720965066099,0.97478675,3193.9,3193.8,0.792]
[1720965068306,0.4915221,3193.9,3193.8,0.792]
[1720965076420,2.45452289,3193.9,3193.8,0.792]
[1720965079451,2.45578723,3193.9,3193.8,0.792]
[1720965082835,2.45667359,3193.9,3193.8,0.792]
[1720965083251,0.4915221,3193.9,3193.8,0.792]
[1720965088544,2.78690522,3193.9,3193.8,0.792]
[1720965088742,0.4915221,3193.9,3193.8,0.792]
[1720965089174,2.78690522,3193.9,3193.8,0.792]
[1720965089358,0.4915221,3193.9,3193.8,0.792]
[1720965089560,2.78706274,3193.9,3193.8,0.792]
[1720965090083,0.4915221,3193.9,3193.8,0.792]
[1720965090534,2.78706274,3193.9,3193.8,0.792]
[1720965091187,0.4915221,3193.9,3193.8,0.792]
[1720965092642,2.78706274,3193.9,3193.8,0.792]
[1720965092841,2.78709046,3193.9,3193.8,0.792]
[1720965094957,2.78700123,3193.9,3193.8,0.792]
[1720965096062,0.4915221,3193.9,3193.8,0.792]
[1720965096267,2.78704055,3193.9,3193.8,0.792]
[1720965097074,0.4915221,3193.9,3193.8,0.792]
[1720965103285,0.4915221,3193.9,3193.8,3.29685]
[1720965107004,0.4915221,3193.9,3193.8,0.792]
[1720965107590,0.88118429,3193.9,3193.3,7.29]
[1720965107893,1.96693421,3193.6,3193.3,9.79523]
[1720965108095,1.96693421,3193.6,3193.5,0.792]
[1720965109101,1.96693421,3193.7,3193.5,0.792]
[1720965109305,0.32761564,3193.8,3193.6,0.792]
[1720965109890,1.96698572,3193.7,3193.6,0.792]
[1720965110544,0.32761564,3193.8,3193.6,0.792]
[1720965110842,1.96836567,3193.7,3193.6,0.792]
[1720965111056,0.32761564,3193.8,3193.6,0.792]
[1720965112052,0.32761564,3193.8,3193.6,3.29696]
[1720965112259,2.2966834,3193.8,3193.7,7.50176]
[1720965112551,0.4915221,3193.9,3193.8,5.0097]
[1720965112552,2.46058986,3193.9,3193.8,5.0097]
[1720965112768,0.32762871,3194.2,3194.1,2.50455]
[1720965113068,2.62505948,3194.2,3194.1,0.792]
[1720965113218,0.32762871,3194.2,3194.1,0.792]
[1720965113420,2.62505948,3194.2,3193.6,21.975]
[1720965113720,2.62505948,3194.2,3194.0,0.792]
[1720965116076,2.62438451,3194.2,3194.0,0.792]
[1720965119354,2.62415829,3194.2,3194.0,0.792]
[1720965119668,0.32762871,3194.2,3194.0,0.792]
[1720965120071,2.62415829,3194.2,3194.0,0.792]
[1720965120434,0.32762871,3194.2,3194.0,0.792]
[1720965120635,2.62415829,3194.2,3194.0,0.792]
[1720965121237,0.32762871,3194.2,3194.0,0.792]
[1720965125658,0.5899597,3194.2,3194.0,0.792]
[1720965125860,2.4005,3194.1,3194.0,0.792]
[1720965128146,2.4005,3194.1,3194.0,0.767]
[1720965134191,4.90511,3194.1,3193.5,7.29]
[1720965134367,4.21983654,3193.8,3193.5,7.29]
[1720965134574,1.96753654,3193.7,3193.5,7.29]
[1720965134772,1.96753654,3193.6,3193.5,7.29]
[1720965135093,1.96718385,3193.6,3193.5,8.082]
[1720965135482,1.96718385,3193.6,3193.5,0.792]
[1720965136065,1.96718385,3193.6,3193.3,21.97524]
[1720965136066,0.45471533,3193.6,3193.3,19.47]
[1720965136291,0.45471533,3193.6,3192.9,7.29]
[1720965136292,2.2523,3193.5,3193.1,0.792]
[1720965136462,2.29504782,3193.4,3193.1,0.792]
[1720965137393,1.96572219,3193.2,3193.1,0.792]
[1720965137592,2.29504782,3193.4,3193.1,0.792]
[1720965137795,1.9656964,3193.2,3193.1,0.792]
[1720965138093,1.96569517,3193.2,3193.1,0.792]
[1720965138293,1.96506721,3193.2,3193.1,0.792]
[1720965140066,4.92505199,3193.3,3193.1,0.792]
[1720965141490,2.95998478,3193.3,3193.1,0.792]
[1720965141693,0.29599848,3193.2,3193.1,0.792]
[1720965143005,4.92371303,3193.3,3193.1,0.792]
[1720965143305,1.96372825,3193.4,3193.1,0.792]
[1720965143469,1.96372825,3193.4,3193.3,0.792]
[1720965144777,2.50516,3193.5,3193.3,0.792]
[1720965144977,1.96278637,3193.4,3193.3,0.792]
[1720965145973,1.96278637,3193.5,3193.3,0.792]
[1720965146506,2.95975533,3193.6,3193.3,0.792]
[1720965146507,1.96278637,3193.6,3193.3,0.792]
[1720965146675,2.2523,3193.7,3193.5,0.792]
[1720965146872,1.96228898,3193.6,3193.5,0.792]
[1720965147174,1.96223102,3193.6,3193.5,0.792]
[1720965147682,3.24025269,3193.7,3193.5,0.792]
[1720965148285,1.96201238,3193.6,3193.5,0.792]
[1720965148487,3.24025269,3193.7,3193.5,0.792]
[1720965148785,0.83619277,3193.6,3193.5,0.792]
[1720965148984,2.79821939,3193.6,3193.5,0.792]
[1720965151510,2.79818075,3193.6,3193.5,0.792]
[1720965152277,1.96198798,3193.6,3193.5,0.792]
[1720965154008,1.96198798,3193.6,3193.5,3.29708]
[1720965154695,0.32766942,3193.8,3193.5,3.29708]
[1720965155011,0.32766942,3193.8,3193.7,0.792]
[1720965158035,2.81256942,3193.8,3193.2,2.50531]
[1720965158332,1.63440228,3193.3,3193.2,2.50531]
[1720965158533,1.63440228,3193.3,3193.2,3.29731]
[1720965158909,1.96206463,3193.3,3193.2,3.29731]
[1720965159311,1.63519344,3193.3,3193.2,8.709901]
[1720965159631,0.32766235,3193.3,3193.2,8.709901]
[1720965159833,1.63519895,3193.3,3193.2,8.709901]
[1720965160205,1.63519895,3193.3,3193.2,7.917901]
[1720965160405,0.32766235,3193.3,3193.2,8.709901]
[1720965161226,1.96204972,3193.3,3193.2,8.709901]
[1720965161446,1.96204972,3193.3,3193.2,5.62431]
[1720965161757,1.96223966,3193.3,3193.2,5.62431]
[1720965162915,1.96223966,3193.3,3193.2,2.50531]
[1720965163122,0.32766235,3193.3,3193.2,3.29731]
[1720965163826,1.96233647,3193.3,3193.2,3.29731]
[1720965164150,0.32766235,3193.3,3193.2,3.29731]
[1720965164520,1.96239199,3193.3,3193.2,3.29731]
[1720965165047,1.96239295,3193.3,3193.2,3.29731]
[1720965165244,1.96240385,3193.3,3193.2,3.29731]
[1720965165545,1.96248413,3193.3,3193.2,3.29731]
[1720965168367,1.96288657,3193.3,3193.2,3.29731]